[Event "Titled Tuesday Blitz April 25 Late 2023"]
[White "Kovalevsky, Stanislav"]
[Black "Aldokhin, Ivan"]
[WhiteFideId "13508598"]
[BlackFideId "24115720"]
[WhiteElo "2174"]
[BlackElo "2322"]
[Result "0-1"]
[Round "09"]
[TimeControl "180+2"]
[Date "2023.04.25"]
[WhiteClock "0:00:02"]
[BlackClock "0:00:03"]

1. c4 {[%clk 0:03:00]}  Nf6 {[%clk 0:02:55]} 2. Nc3 {[%clk 0:03:00]}  g6 {[%clk 0:02:55]} 3. g3 {[%clk 0:03:01]}  Bg7 {[%clk 0:02:55]} 4. e4 {[%clk 0:03:01]}  d6 {[%clk 0:02:56]} 5. Bg2 {[%clk 0:03:01]}  O-O {[%clk 0:02:57]} 6. Nge2 {[%clk 0:02:58]}  c5 {[%clk 0:02:57]} 7. a3 {[%clk 0:02:58]}  Nc6 {[%clk 0:02:57]} 8. Rb1 {[%clk 0:02:59]}  e6 {[%clk 0:02:46]} 9. b4 {[%clk 0:02:58]}  cxb4 {[%clk 0:02:46]} 10. axb4 {[%clk 0:02:58]}  d5 {[%clk 0:02:44]} 11. exd5 {[%clk 0:02:52]}  exd5 {[%clk 0:02:43]} 12. Nxd5 {[%clk 0:02:53]}  Nxd5 {[%clk 0:02:35]} 13. Bxd5 {[%clk 0:02:52]}  Bh3 {[%clk 0:02:33]} 14. d4 {[%clk 0:02:37]}  Re8 {[%clk 0:02:06]} 15. Be3 {[%clk 0:02:35]}  Ne7 {[%clk 0:01:40]} 16. Bxb7 {[%clk 0:02:28]}  Nf5 {[%clk 0:01:39]} 17. Qd3 {[%clk 0:01:57]}  Rb8 {[%clk 0:01:26]} 18. Bf3 {[%clk 0:01:53]}  Bxd4 {[%clk 0:01:03]} 19. Nxd4 {[%clk 0:01:07]}  Nxd4 {[%clk 0:00:53]} 20. Bd5 {[%clk 0:01:00]}  Nf3+ {[%clk 0:00:40]} 21. Kd1 {[%clk 0:00:54]}  Ne5 {[%clk 0:00:25]} 22. Qd4 {[%clk 0:00:48]}  Nxc4 {[%clk 0:00:24]} 23. Bxc4 {[%clk 0:00:20]}  Qxd4+ {[%clk 0:00:25]} 24. Bxd4 {[%clk 0:00:20]}  Red8 {[%clk 0:00:25]} 25. Kc2 {[%clk 0:00:17]}  Bf5+ {[%clk 0:00:22]} 26. Kc3 {[%clk 0:00:16]}  Rbc8 {[%clk 0:00:16]} 27. Bc5 {[%clk 0:00:11]}  Bxb1 {[%clk 0:00:11]} 28. Rxb1 {[%clk 0:00:11]}  a5 {[%clk 0:00:12]} 29. Ra1 {[%clk 0:00:08]}  axb4+ {[%clk 0:00:11]} 30. Kxb4 {[%clk 0:00:09]}  Rd7 {[%clk 0:00:04]} 31. Ra7 {[%clk 0:00:06]}  Rd1 {[%clk 0:00:02]} 32. Bxf7+ {[%clk 0:00:04]}  Kh8 {[%clk 0:00:02]} 33. Bb3 {[%clk 0:00:04]}  Rd3 {[%clk 0:00:02]} 34. Bc4 {[%clk 0:00:02]}  Rd1 {[%clk 0:00:02]} 35. Bb3 {[%clk 0:00:01]}  Rb8+ {[%clk 0:00:02]} 36. Kc3 {[%clk 0:00:02]}  Rc1+ {[%clk 0:00:03]} 37. Kd4 {[%clk 0:00:02]}  Rxb3 {[%clk 0:00:03]} 38. Ra8+ {[%clk 0:00:02]}  Kg7 {[%clk 0:00:03]} 39. Bd6 {[%clk 0:00:03]}  Rd1+ {[%clk 0:00:03]} 40. Kc5 {[%clk 0:00:03]}  Rc3+ {[%clk 0:00:03]} 41. Kb4 {[%clk 0:00:04]}  Rcd3 {[%clk 0:00:02]} 42. Be5+ {[%clk 0:00:04]}  Kf7 {[%clk 0:00:03]} 43. Ra7+ {[%clk 0:00:04]}  Ke6 {[%clk 0:00:03]} 44. f4 {[%clk 0:00:05]}  Rb1+ {[%clk 0:00:03]} 45. Kc4 {[%clk 0:00:06]}  Rd7 {[%clk 0:00:03]} 46. Ra6+ {[%clk 0:00:06]}  Kf5 {[%clk 0:00:03]} 47. h3 {[%clk 0:00:05]}  Ke4 {[%clk 0:00:03]} 48. Rf6 {[%clk 0:00:04]}  Rc1+ {[%clk 0:00:03]} 49. Kb3 {[%clk 0:00:03]}  Rb7+ {[%clk 0:00:03]} 50. Ka2 {[%clk 0:00:03]}  Rc8 {[%clk 0:00:03]} 51. Ra6 {[%clk 0:00:03]}  Rd7 {[%clk 0:00:02]} 52. h4 {[%clk 0:00:03]}  Rd2+ {[%clk 0:00:02]} 53. Kb3 {[%clk 0:00:02]}  Rd3+ {[%clk 0:00:02]} 54. Kb4 {[%clk 0:00:02]}  Rxg3 {[%clk 0:00:03]} 55. h5 {[%clk 0:00:01]}  gxh5 {[%clk 0:00:03]} 56. Rh6 {[%clk 0:00:02]}  Rg1 {[%clk 0:00:02]} 57. Rxh5 {[%clk 0:00:02]}  Rb1+ {[%clk 0:00:03]} 58. Ka3 {[%clk 0:00:02]}  Ra8# {[%clk 0:00:03]} 0-1


[Site "https://www.chess.com"]

[Event "Titled Tuesday Blitz April 25 Late 2023"]
[White "Baltic, Fatih"]
[Black "Espinosa, Pedro"]
[WhiteFideId "12979090"]
[BlackFideId "30921066"]
[WhiteElo "2200"]
[BlackElo "2016"]
[Result "0-1"]
[Round "09"]
[TimeControl "180+2"]
[Date "2023.04.25"]
[WhiteClock "0:00:08"]
[BlackClock "0:00:05"]

1. Nf3 {[%clk 0:03:00]}  d5 {[%clk 0:02:59]} 2. g3 {[%clk 0:02:58]}  g6 {[%clk 0:02:58]} 3. Bg2 {[%clk 0:02:57]}  Bg7 {[%clk 0:02:58]} 4. O-O {[%clk 0:02:58]}  e5 {[%clk 0:02:57]} 5. d3 {[%clk 0:02:58]}  Nc6 {[%clk 0:02:52]} 6. Nbd2 {[%clk 0:02:54]}  Nge7 {[%clk 0:02:47]} 7. c4 {[%clk 0:02:54]}  O-O {[%clk 0:02:46]} 8. Rb1 {[%clk 0:02:51]}  h6 {[%clk 0:02:07]} 9. b4 {[%clk 0:02:48]}  dxc4 {[%clk 0:02:02]} 10. Nxc4 {[%clk 0:02:46]}  Nd5 {[%clk 0:01:51]} 11. Bd2 {[%clk 0:02:37]}  a6 {[%clk 0:01:44]} 12. e3 {[%clk 0:02:25]}  Be6 {[%clk 0:01:39]} 13. Qc2 {[%clk 0:02:24]}  Qe7 {[%clk 0:01:30]} 14. Rfd1 {[%clk 0:02:23]}  Ndxb4 {[%clk 0:01:04]} 15. Bxb4 {[%clk 0:02:17]}  Nxb4 {[%clk 0:01:05]} 16. Qd2 {[%clk 0:02:11]}  Bxc4 {[%clk 0:00:57]} 17. dxc4 {[%clk 0:02:06]}  c5 {[%clk 0:00:55]} 18. a3 {[%clk 0:02:05]}  Nc6 {[%clk 0:00:52]} 19. Qc2 {[%clk 0:02:00]}  Rfd8 {[%clk 0:00:47]} 20. Nd2 {[%clk 0:02:00]}  f5 {[%clk 0:00:41]} 21. Bd5+ {[%clk 0:01:59]}  Kh7 {[%clk 0:00:40]} 22. Rb6 {[%clk 0:01:43]}  Rd7 {[%clk 0:00:18]} 23. f3 {[%clk 0:01:36]}  f4 {[%clk 0:00:17]} 24. e4 {[%clk 0:01:23]}  fxg3 {[%clk 0:00:15]} 25. hxg3 {[%clk 0:01:22]}  Nd4 {[%clk 0:00:14]} 26. Qd3 {[%clk 0:01:21]}  Rf8 {[%clk 0:00:14]} 27. Rf1 {[%clk 0:01:18]}  Qg5 {[%clk 0:00:12]} 28. Kg2 {[%clk 0:01:18]}  h5 {[%clk 0:00:11]} 29. Rh1 {[%clk 0:01:18]}  Bh6 {[%clk 0:00:11]} 30. Rb2 {[%clk 0:01:04]}  b5 {[%clk 0:00:11]} 31. Rf1 {[%clk 0:00:51]}  Ne6 {[%clk 0:00:08]} 32. Kh2 {[%clk 0:00:45]}  Nd4 {[%clk 0:00:07]} 33. Rg1 {[%clk 0:00:38]}  h4 {[%clk 0:00:07]} 34. g4 {[%clk 0:00:27]}  Qf4+ {[%clk 0:00:06]} 35. Kh3 {[%clk 0:00:27]}  b4 {[%clk 0:00:06]} 36. axb4 {[%clk 0:00:25]}  cxb4 {[%clk 0:00:06]} 37. Rg2 {[%clk 0:00:24]}  Kg7 {[%clk 0:00:06]} 38. Rxb4 {[%clk 0:00:24]}  Bg5 {[%clk 0:00:03]} 39. Rb3 {[%clk 0:00:22]}  Qf6 {[%clk 0:00:03]} 40. Rg1 {[%clk 0:00:20]}  Ne6 {[%clk 0:00:03]} 41. Rgb1 {[%clk 0:00:17]}  Nf4+ {[%clk 0:00:03]} 42. Kh2 {[%clk 0:00:16]}  Nxd3 {[%clk 0:00:04]} 43. Rxd3 {[%clk 0:00:17]}  Bxd2 {[%clk 0:00:04]} 44. Kg2 {[%clk 0:00:12]}  Bf4 {[%clk 0:00:04]} 45. Rdb3 {[%clk 0:00:10]}  h3+ {[%clk 0:00:05]} 46. Kh1 {[%clk 0:00:10]}  h2 {[%clk 0:00:05]} 47. Rb7 {[%clk 0:00:10]}  Rd8 {[%clk 0:00:04]} 48. R7b6 {[%clk 0:00:10]}  Qe7 {[%clk 0:00:04]} 49. Rxa6 {[%clk 0:00:09]}  Rd6 {[%clk 0:00:04]} 50. Rb7 {[%clk 0:00:08]}  R8d7 {[%clk 0:00:05]} 51. Raa7 {[%clk 0:00:07]}  Rxb7 {[%clk 0:00:04]} 52. Rxb7 {[%clk 0:00:08]}  Rd7 {[%clk 0:00:05]} 53. Rb6 {[%clk 0:00:08]}  Qc5 {[%clk 0:00:05]} 54. Rb1 {[%clk 0:00:08]}  Qf2 {[%clk 0:00:05]} 55. Be6 {[%clk 0:00:08]}  Rd2 {[%clk 0:00:05]} 0-1


[Site "https://www.chess.com"]

[Event "Titled Tuesday Blitz April 25 Late 2023"]
[White "Munoz, Francisco Javier"]
[Black "Rangel, Daniel"]
[WhiteFideId "128368"]
[BlackFideId "2124475"]
[WhiteElo "2383"]
[BlackElo "2256"]
[Result "1-0"]
[Round "09"]
[TimeControl "180+2"]
[Date "2023.04.25"]
[WhiteClock "0:02:11"]
[BlackClock "0:02:07"]

1. e4 {[%clk 0:02:40]}  c5 {[%clk 0:02:56]} 2. Nc3 {[%clk 0:02:41]}  g6 {[%clk 0:02:56]} 3. d4 {[%clk 0:02:41]}  cxd4 {[%clk 0:02:56]} 4. Qxd4 {[%clk 0:02:42]}  Nf6 {[%clk 0:02:55]} 5. Nf3 {[%clk 0:02:37]}  Nc6 {[%clk 0:02:55]} 6. Qa4 {[%clk 0:02:38]}  d6 {[%clk 0:02:56]} 7. e5 {[%clk 0:02:37]}  dxe5 {[%clk 0:02:56]} 8. Nxe5 {[%clk 0:02:37]}  Bd7 {[%clk 0:02:57]} 9. Nxd7 {[%clk 0:02:38]}  Nxd7 {[%clk 0:02:58]} 10. Be3 {[%clk 0:02:33]}  Bg7 {[%clk 0:02:54]} 11. O-O-O {[%clk 0:02:33]}  O-O {[%clk 0:02:53]} 12. h4 {[%clk 0:02:23]}  Qc8 {[%clk 0:02:47]} 13. Nd5 {[%clk 0:02:20]}  Nb6 {[%clk 0:02:44]} 14. Qxc6 {[%clk 0:02:15]}  bxc6 {[%clk 0:02:18]} 15. Nxe7+ {[%clk 0:02:14]}  Kh8 {[%clk 0:02:19]} 16. Nxc8 {[%clk 0:02:15]}  Rfxc8 {[%clk 0:02:20]} 17. h5 {[%clk 0:02:14]}  Na4 {[%clk 0:02:11]} 18. Bd4 {[%clk 0:02:11]}  Bxd4 {[%clk 0:02:07]} 19. Rxd4 {[%clk 0:02:12]}  Kg7 {[%clk 0:02:07]} 20. Rxa4 {[%clk 0:02:11]} 1-0


[Site "https://www.chess.com"]

[Event "Titled Tuesday Blitz April 25 Late 2023"]
[White "Martinez Reyes, Pedro Ramon"]
[Black "Bryant, Todd"]
[WhiteFideId "3901807"]
[BlackFideId "2031299"]
[WhiteElo "2340"]
[BlackElo "2075"]
[Result "1-0"]
[Round "09"]
[TimeControl "180+2"]
[Date "2023.04.25"]
[WhiteClock "0:01:46"]
[BlackClock "0:01:26"]

1. d4 {[%clk 0:02:52]}  Nf6 {[%clk 0:03:00]} 2. c4 {[%clk 0:02:52]}  g6 {[%clk 0:03:00]} 3. Nc3 {[%clk 0:02:52]}  Bg7 {[%clk 0:03:00]} 4. e4 {[%clk 0:02:53]}  d6 {[%clk 0:03:01]} 5. f4 {[%clk 0:02:49]}  c5 {[%clk 0:02:59]} 6. d5 {[%clk 0:02:46]}  O-O {[%clk 0:03:00]} 7. Nf3 {[%clk 0:02:41]}  e6 {[%clk 0:03:00]} 8. dxe6 {[%clk 0:02:29]}  fxe6 {[%clk 0:02:58]} 9. e5 {[%clk 0:02:21]}  dxe5 {[%clk 0:02:49]} 10. Qxd8 {[%clk 0:02:21]}  Rxd8 {[%clk 0:02:50]} 11. Nxe5 {[%clk 0:02:22]}  Ng4 {[%clk 0:02:51]} 12. Nxg4 {[%clk 0:02:20]}  Nc6 {[%clk 0:02:51]} 13. Be3 {[%clk 0:02:16]}  e5 {[%clk 0:02:50]} 14. Nxe5 {[%clk 0:02:16]}  Nxe5 {[%clk 0:02:51]} 15. fxe5 {[%clk 0:02:17]}  Bxe5 {[%clk 0:02:52]} 16. Rd1 {[%clk 0:02:12]}  Re8 {[%clk 0:02:51]} 17. Nd5 {[%clk 0:02:10]}  Bg4 {[%clk 0:02:44]} 18. Be2 {[%clk 0:02:09]}  Bf5 {[%clk 0:02:40]} 19. O-O {[%clk 0:02:05]}  Be4 {[%clk 0:02:36]} 20. Bf3 {[%clk 0:02:03]}  Bxf3 {[%clk 0:02:27]} 21. Rxf3 {[%clk 0:02:03]}  b5 {[%clk 0:02:26]} 22. Bxc5 {[%clk 0:01:58]}  bxc4 {[%clk 0:02:24]} 23. Bd4 {[%clk 0:01:58]}  Bxd4+ {[%clk 0:02:15]} 24. Rxd4 {[%clk 0:01:59]}  Re2 {[%clk 0:02:16]} 25. Rf2 {[%clk 0:01:55]}  Re1+ {[%clk 0:02:15]} 26. Rf1 {[%clk 0:01:56]}  Re2 {[%clk 0:02:16]} 27. Nf6+ {[%clk 0:01:54]}  Kg7 {[%clk 0:02:12]} 28. Rd7+ {[%clk 0:01:54]}  Kh6 {[%clk 0:02:12]} 29. h4 {[%clk 0:01:54]}  Rh8 {[%clk 0:02:07]} 30. g4 {[%clk 0:01:54]}  g5 {[%clk 0:02:06]} 31. Rf5 {[%clk 0:01:53]}  Rxb2 {[%clk 0:01:53]} 32. Rxg5 {[%clk 0:01:49]}  c3 {[%clk 0:01:39]} 33. Rd6 {[%clk 0:01:47]}  Rb6 {[%clk 0:01:26]} 34. Ng8# {[%clk 0:01:46]} 1-0


[Site "https://www.chess.com"]

[Event "Titled Tuesday Blitz April 25 Late 2023"]
[White "Kavutskiy, Konstantin"]
[Black "Albuquerque Junior,Wellington S."]
[WhiteFideId "2026384"]
[BlackFideId "2151480"]
[WhiteElo "2323"]
[BlackElo "2109"]
[Result "1-0"]
[Round "09"]
[TimeControl "180+2"]
[Date "2023.04.25"]
[WhiteClock "0:00:38"]
[BlackClock "0:00:04"]

1. d4 {[%clk 0:03:00]}  Nf6 {[%clk 0:02:59]} 2. Bg5 {[%clk 0:03:00]}  c5 {[%clk 0:02:58]} 3. d5 {[%clk 0:02:59]}  Qb6 {[%clk 0:02:55]} 4. Nc3 {[%clk 0:02:58]}  d6 {[%clk 0:02:40]} 5. e4 {[%clk 0:02:56]}  Nbd7 {[%clk 0:02:29]} 6. Nf3 {[%clk 0:02:51]}  a6 {[%clk 0:02:29]} 7. a4 {[%clk 0:02:48]}  g6 {[%clk 0:02:25]} 8. a5 {[%clk 0:02:36]}  Qc7 {[%clk 0:02:19]} 9. Nd2 {[%clk 0:02:29]}  h6 {[%clk 0:02:14]} 10. Bh4 {[%clk 0:02:28]}  Bg7 {[%clk 0:02:14]} 11. Be2 {[%clk 0:02:26]}  O-O {[%clk 0:02:07]} 12. O-O {[%clk 0:02:26]}  b5 {[%clk 0:01:43]} 13. axb6 {[%clk 0:02:20]}  Nxb6 {[%clk 0:01:43]} 14. f4 {[%clk 0:02:14]}  Bb7 {[%clk 0:01:35]} 15. Bf3 {[%clk 0:02:11]}  Rfe8 {[%clk 0:01:22]} 16. Re1 {[%clk 0:01:34]}  e6 {[%clk 0:00:57]} 17. dxe6 {[%clk 0:01:35]}  Rxe6 {[%clk 0:00:56]} 18. e5 {[%clk 0:01:35]}  dxe5 {[%clk 0:00:52]} 19. Rxe5 {[%clk 0:01:14]}  Bxf3 {[%clk 0:00:20]} 20. Qxf3 {[%clk 0:01:10]}  Rxe5 {[%clk 0:00:20]} 21. fxe5 {[%clk 0:01:08]}  Qxe5 {[%clk 0:00:21]} 22. Kh1 {[%clk 0:00:47]}  g5 {[%clk 0:00:09]} 23. Bg3 {[%clk 0:00:46]}  Qe6 {[%clk 0:00:05]} 24. Re1 {[%clk 0:00:42]}  Qc8 {[%clk 0:00:04]} 25. Re7 {[%clk 0:00:38]} 1-0


[Site "https://www.chess.com"]

[Event "Titled Tuesday Blitz April 25 Late 2023"]
[White "Liu, Eric"]
[Black "Sliwicki, Damian"]
[WhiteFideId "30960240"]
[BlackFideId "1127128"]
[WhiteElo "2094"]
[BlackElo "2030"]
[Result "0-1"]
[Round "09"]
[TimeControl "180+2"]
[Date "2023.04.25"]
[WhiteClock "0:01:25"]
[BlackClock "0:00:21"]

1. b3 {[%clk 0:03:00]}  e5 {[%clk 0:02:59]} 2. Bb2 {[%clk 0:03:01]}  Nc6 {[%clk 0:02:56]} 3. e3 {[%clk 0:03:02]}  Nf6 {[%clk 0:02:56]} 4. h4 {[%clk 0:03:02]}  d5 {[%clk 0:02:54]} 5. h5 {[%clk 0:03:01]}  d4 {[%clk 0:02:50]} 6. Bb5 {[%clk 0:02:59]}  Qd5 {[%clk 0:02:40]} 7. Bxc6+ {[%clk 0:02:59]}  Qxc6 {[%clk 0:02:37]} 8. Nf3 {[%clk 0:03:00]}  dxe3 {[%clk 0:02:33]} 9. dxe3 {[%clk 0:03:00]}  Bb4+ {[%clk 0:02:32]} 10. Nbd2 {[%clk 0:02:54]}  Bg4 {[%clk 0:02:26]} 11. a3 {[%clk 0:02:53]}  Bxd2+ {[%clk 0:01:59]} 12. Qxd2 {[%clk 0:02:54]}  Bxf3 {[%clk 0:01:58]} 13. gxf3 {[%clk 0:02:55]}  Qxf3 {[%clk 0:01:58]} 14. Rg1 {[%clk 0:02:54]}  Qxh5 {[%clk 0:01:49]} 15. Qb4 {[%clk 0:02:48]}  O-O-O {[%clk 0:01:44]} 16. Qa5 {[%clk 0:02:42]}  Rd5 {[%clk 0:01:06]} 17. Qxa7 {[%clk 0:02:42]}  Rhd8 {[%clk 0:01:06]} 18. Qa8+ {[%clk 0:02:32]}  Kd7 {[%clk 0:01:06]} 19. Qxb7 {[%clk 0:02:33]}  Ke7 {[%clk 0:01:04]} 20. Qxc7+ {[%clk 0:01:43]}  R8d7 {[%clk 0:01:04]} 21. Qxd7+ {[%clk 0:01:43]}  Nxd7 {[%clk 0:01:01]} 22. c4 {[%clk 0:01:44]}  Rd3 {[%clk 0:00:54]} 23. b4 {[%clk 0:01:42]}  Rb3 {[%clk 0:00:48]} 24. Bc1 {[%clk 0:01:37]}  e4 {[%clk 0:00:47]} 25. Ra2 {[%clk 0:01:32]}  Ne5 {[%clk 0:00:47]} 26. Kd2 {[%clk 0:01:31]}  Rd3+ {[%clk 0:00:33]} 27. Kc2 {[%clk 0:01:32]}  Nxc4 {[%clk 0:00:33]} 28. Kb1 {[%clk 0:01:28]}  Rd1 {[%clk 0:00:29]} 29. Rxg7 {[%clk 0:01:25]}  Qh1 {[%clk 0:00:23]} 30. Kc2 {[%clk 0:01:25]}  Rxc1+ {[%clk 0:00:22]} 31. Kb3 {[%clk 0:01:25]}  Qd1+ {[%clk 0:00:21]} 32. Rc2 {[%clk 0:01:25]}  Qxc2# {[%clk 0:00:21]} 0-1


[Site "https://www.chess.com"]

[Event "Titled Tuesday Blitz April 25 Late 2023"]
[White "Hoffmann, Asa"]
[Black "Novikov, Evgenij"]
[WhiteFideId "2001470"]
[BlackFideId "4125380"]
[WhiteElo "2117"]
[BlackElo "2242"]
[Result "0-1"]
[Round "09"]
[TimeControl "180+2"]
[Date "2023.04.25"]
[WhiteClock "0:00:02"]
[BlackClock "0:00:04"]

1. d4 {[%clk 0:02:57]}  Nf6 {[%clk 0:02:58]} 2. Bg5 {[%clk 0:02:54]}  d5 {[%clk 0:02:56]} 3. Nd2 {[%clk 0:02:53]}  c5 {[%clk 0:02:51]} 4. c3 {[%clk 0:02:52]}  e6 {[%clk 0:02:43]} 5. e3 {[%clk 0:02:52]}  h6 {[%clk 0:02:41]} 6. Bh4 {[%clk 0:02:51]}  Nc6 {[%clk 0:02:41]} 7. f4 {[%clk 0:02:51]}  Qc7 {[%clk 0:02:32]} 8. Ngf3 {[%clk 0:02:50]}  cxd4 {[%clk 0:02:32]} 9. cxd4 {[%clk 0:02:49]}  Ne4 {[%clk 0:02:25]} 10. a3 {[%clk 0:02:43]}  g5 {[%clk 0:02:17]} 11. Bg3 {[%clk 0:02:30]}  Bd6 {[%clk 0:02:02]} 12. Ne5 {[%clk 0:02:18]}  Bxe5 {[%clk 0:01:53]} 13. fxe5 {[%clk 0:02:16]}  Nxg3 {[%clk 0:01:53]} 14. hxg3 {[%clk 0:02:15]}  f6 {[%clk 0:01:18]} 15. Qh5+ {[%clk 0:02:10]}  Kd8 {[%clk 0:01:17]} 16. exf6 {[%clk 0:01:57]}  Qxg3+ {[%clk 0:01:14]} 17. Ke2 {[%clk 0:01:54]}  e5 {[%clk 0:01:09]} 18. Qf7 {[%clk 0:01:14]}  Bg4+ {[%clk 0:01:08]} 19. Kd3 {[%clk 0:01:14]}  exd4 {[%clk 0:01:09]} 20. Qxd5+ {[%clk 0:01:01]}  Kc7 {[%clk 0:01:03]} 21. Qf7+ {[%clk 0:00:55]}  Kb6 {[%clk 0:00:46]} 22. Qb3+ {[%clk 0:00:54]}  Kc7 {[%clk 0:00:38]} 23. Qf7+ {[%clk 0:00:53]}  Kb8 {[%clk 0:00:29]} 24. Nc4 {[%clk 0:00:40]}  Ne5+ {[%clk 0:00:13]} 25. Nxe5 {[%clk 0:00:38]}  Qxe3+ {[%clk 0:00:14]} 26. Kc4 {[%clk 0:00:22]}  Rc8+ {[%clk 0:00:15]} 27. Kd5 {[%clk 0:00:14]}  Qb3+ {[%clk 0:00:08]} 28. Ke4 {[%clk 0:00:11]}  Qe3+ {[%clk 0:00:04]} 29. Kd5 {[%clk 0:00:10]}  Rd8+ {[%clk 0:00:03]} 30. Nd7+ {[%clk 0:00:09]}  Rxd7+ {[%clk 0:00:03]} 31. Qxd7 {[%clk 0:00:02]}  Bxd7 {[%clk 0:00:04]} 0-1


[Site "https://www.chess.com"]

[Event "Titled Tuesday Blitz April 25 Late 2023"]
[White "Bueno, Alfeu Junior Varela"]
[Black "Aggelis, Nikolaos"]
[WhiteFideId "2108879"]
[BlackFideId "4213220"]
[WhiteElo "2175"]
[BlackElo "2189"]
[Result "1-0"]
[Round "09"]
[TimeControl "180+2"]
[Date "2023.04.25"]
[WhiteClock "0:00:09"]
[BlackClock "0:00:05"]

1. e4 {[%clk 0:02:58]}  c6 {[%clk 0:02:57]} 2. d4 {[%clk 0:02:57]}  d5 {[%clk 0:02:56]} 3. f3 {[%clk 0:02:58]}  e5 {[%clk 0:02:47]} 4. dxe5 {[%clk 0:02:53]}  Bc5 {[%clk 0:02:38]} 5. exd5 {[%clk 0:02:48]}  Qb6 {[%clk 0:02:34]} 6. Nh3 {[%clk 0:02:48]}  Bxh3 {[%clk 0:02:30]} 7. gxh3 {[%clk 0:02:49]}  cxd5 {[%clk 0:02:23]} 8. Nc3 {[%clk 0:02:47]}  Bf2+ {[%clk 0:02:18]} 9. Ke2 {[%clk 0:02:46]}  Ne7 {[%clk 0:02:17]} 10. Na4 {[%clk 0:02:22]}  Qd4 {[%clk 0:02:05]} 11. Qxd4 {[%clk 0:02:11]}  Bxd4 {[%clk 0:02:06]} 12. f4 {[%clk 0:02:09]}  a6 {[%clk 0:01:48]} 13. Be3 {[%clk 0:02:06]}  Nbc6 {[%clk 0:01:46]} 14. c3 {[%clk 0:01:52]}  Bxe3 {[%clk 0:01:44]} 15. Kxe3 {[%clk 0:01:53]}  Nf5+ {[%clk 0:01:42]} 16. Kf2 {[%clk 0:01:49]}  d4 {[%clk 0:01:39]} 17. Bg2 {[%clk 0:01:45]}  O-O-O {[%clk 0:01:35]} 18. Rad1 {[%clk 0:01:35]}  Kc7 {[%clk 0:01:31]} 19. Be4 {[%clk 0:01:19]}  Nfe7 {[%clk 0:01:29]} 20. Nc5 {[%clk 0:01:16]}  dxc3 {[%clk 0:01:25]} 21. bxc3 {[%clk 0:01:12]}  Ng6 {[%clk 0:00:59]} 22. Ke3 {[%clk 0:01:06]}  Rhe8 {[%clk 0:00:55]} 23. Rb1 {[%clk 0:01:05]}  Rb8 {[%clk 0:00:42]} 24. Rb2 {[%clk 0:00:58]}  Ngxe5 {[%clk 0:00:41]} 25. fxe5 {[%clk 0:00:55]}  Rxe5 {[%clk 0:00:42]} 26. Nd3 {[%clk 0:00:55]}  Re6 {[%clk 0:00:25]} 27. Kf3 {[%clk 0:00:50]}  Rbe8 {[%clk 0:00:23]} 28. Nf2 {[%clk 0:00:42]}  Rf6+ {[%clk 0:00:22]} 29. Kg3 {[%clk 0:00:39]}  Rxf2 {[%clk 0:00:21]} 30. Rxf2 {[%clk 0:00:40]}  Rxe4 {[%clk 0:00:20]} 31. Rxf7+ {[%clk 0:00:40]}  Re7 {[%clk 0:00:21]} 32. Rxe7+ {[%clk 0:00:38]}  Nxe7 {[%clk 0:00:22]} 33. Rf1 {[%clk 0:00:38]}  Kd6 {[%clk 0:00:22]} 34. Rf7 {[%clk 0:00:36]}  Ke6 {[%clk 0:00:23]} 35. Rf8 {[%clk 0:00:34]}  Nd5 {[%clk 0:00:17]} 36. c4 {[%clk 0:00:31]}  Ne3 {[%clk 0:00:17]} 37. c5 {[%clk 0:00:25]}  Kd5 {[%clk 0:00:14]} 38. Rf7 {[%clk 0:00:22]}  Kxc5 {[%clk 0:00:14]} 39. Rxb7 {[%clk 0:00:21]}  a5 {[%clk 0:00:14]} 40. Kf4 {[%clk 0:00:20]}  Nd5+ {[%clk 0:00:14]} 41. Ke5 {[%clk 0:00:21]}  Nb4 {[%clk 0:00:13]} 42. a4 {[%clk 0:00:16]}  Nd3+ {[%clk 0:00:12]} 43. Ke4 {[%clk 0:00:16]}  Kc4 {[%clk 0:00:11]} 44. Rb5 {[%clk 0:00:12]}  Nc5+ {[%clk 0:00:11]} 45. Ke5 {[%clk 0:00:10]}  Nxa4 {[%clk 0:00:11]} 46. Rxa5 {[%clk 0:00:10]}  Nc5 {[%clk 0:00:12]} 47. Ra7 {[%clk 0:00:10]}  Nd3+ {[%clk 0:00:12]} 48. Kf5 {[%clk 0:00:09]}  g6+ {[%clk 0:00:11]} 49. Kg5 {[%clk 0:00:09]}  Nf2 {[%clk 0:00:09]} 50. Rxh7 {[%clk 0:00:08]}  Kd4 {[%clk 0:00:08]} 51. Kxg6 {[%clk 0:00:08]}  Ke4 {[%clk 0:00:09]} 52. h4 {[%clk 0:00:09]}  Kf4 {[%clk 0:00:09]} 53. h5 {[%clk 0:00:09]}  Ng4 {[%clk 0:00:08]} 54. h6 {[%clk 0:00:08]}  Ne5+ {[%clk 0:00:09]} 55. Kg7 {[%clk 0:00:09]}  Kf5 {[%clk 0:00:09]} 56. Rh8 {[%clk 0:00:09]}  Ng4 {[%clk 0:00:06]} 57. Rf8+ {[%clk 0:00:09]}  Kg5 {[%clk 0:00:05]} 58. h7 {[%clk 0:00:09]} 1-0


[Site "https://www.chess.com"]